[Event "Germany Countries-chT Youth 2022"]
[Site "Wiesbaden"]
[Date "2022.10.02"]
[Round "3"]
[White "Halas, Neele Zoe"]
[Black "Altmeyer, Hannah"]
[Result "1-0"]
[ECO "C44"]
[WhiteElo "1392"]
[BlackElo "728"]
[Annotator "NA RC COMBH"]
[PlyCount "53"]
[EventDate "2022.09.28"]
[EventType "team-tourn"]
[EventRounds "7"]
[EventCountry "GER"]
[SourceTitle "playchess.com"]
[Source "ChessBase"]
[SourceQuality "1"]
[TimeControl "40/5400+30:1800+30"]

1. e4 {[%emt 0:00:02]} e5 {[%emt 0:00:21]} 2. Nf3 {[%emt 0:00:04]} Nc6 {[%emt 0:00:13]} 3. d4 {[%emt 0:00:05]} d5 {[%emt 0:00:54]} 4. Nxe5 {[%emt 0:02:21]} Qd7 {[%emt 0:02:09]} 5. Nxd7 {[%emt 0:00:10]} Bxd7 {[%emt 0:00:13]} 6. exd5 {[%emt 0:00:06]} Nb4 {[%emt 0:02:24]} 7. Bd3 {[%emt 0:01:21]} Nxd5 {[%emt 0:00:35]} 8. O-O {[%emt 0:00:08]} Bc6 {[%emt 0:06:37]} 9. c4 {[%emt 0:00:27]} Nf4 {[%emt 0:02:13]} 10. Bxf4 {[%emt 0:00:06]} Bd6 {[%emt 0:15:08]} 11. Bxd6 {[%emt 0:00:13]} cxd6 {[%emt 0:01:58]} 12. d5 {[%emt 0:00:06]} Bd7 {[%emt 0:01:10]} 13. Re1+ {[%emt 0:00:06]} Ne7 {[%emt 0:03:13]} 14. Nc3 {[%emt 0:00:08]} Kf8 {[%emt 0:10:04]} 15. Qf3 {[%emt 0:00:39]} Be8 {[%emt 0:00:29]} 16. Ne4 {[%emt 0:00:26]} Rd8 {[%emt 0:02:49]} 17. Ng5 {[%emt 0:00:31]} Rd7 {[%emt 0:05:56]} 18. Bf5 {[%emt 0:01:14]} Rc7 {[%emt 0:02:43]} 19. Be6 {[%emt 0:01:14]} Ng6 {[%emt 0:05:41]} 20. b3 {[%emt 0:01:57]} a5 {[%emt 0:03:45]} 21. Bh3 {[%emt 0:00:37]} Ne5 {[%emt 0:02:47]} 22. Qf5 {[%emt 0:00:17]} h6 {[%emt 0:01:17]} 23. Ne6+ {[%emt 0:00:06]} Ke7 {[%emt 0:00:37]} 24. Nxc7 {[%emt 0:00:10]} Kf8 {[%emt 0:01:51]} 25. Nxe8 {[%emt 0:00:18]} Kxe8 {[%emt 0:00:10]} 26. Qd7+ {[%emt 0:00:25]} Kf8 {[%emt 0:00:34]} 27. Qd8# {[%emt 0:00:05]} 1-0

[Event "Germany Countries-chT Youth 2022"]
[Site "Wiesbaden"]
[Date "2022.10.02"]
[Round "3"]
[White "Kellner, Anton"]
[Black "Buchholz, Maja"]
[Result "0-1"]
[ECO "D10"]
[WhiteElo "1382"]
[BlackElo "1765"]
[Annotator "NA COMBH"]
[PlyCount "122"]
[EventDate "2022.09.28"]
[EventType "team-tourn"]
[EventRounds "7"]
[EventCountry "GER"]
[SourceTitle "playchess.com"]
[Source "ChessBase"]
[SourceQuality "1"]
[TimeControl "40/5400+30:1800+30"]

1. d4 {[%emt 0:00:03]} d5 {[%emt 0:00:06]} 2. c4 {[%emt 0:00:04]} c6 {[%emt 0:00:05]} 3. cxd5 {[%emt 0:00:06]} cxd5 {[%emt 0:00:08]} 4. Bf4 {[%emt 0:00:06]} Nc6 {[%emt 0:00:06]} 5. e3 {[%emt 0:00:08]} a6 {[%emt 0:00:05]} 6. Bd3 {[%emt 0:00:28]} Nf6 {[%emt 0:00:10]} 7. Nc3 {[%emt 0:00:32]} Bg4 {[%emt 0:00:26]} 8. Nge2 {[%emt 0:00:26]} e6 {[%emt 0:00:26]} 9. f3 {[%emt 0:00:17]} Bh5 {[%emt 0:00:10]} 10. Bg3 {[%emt 0:00:19]} Bg6 {[%emt 0:02:51]} 11. Nf4 {[%emt 0:00:22]} Bxd3 {[%emt 0:05:32]} 12. Nxd3 {[%emt 0:00:09]} Be7 {[%emt 0:04:00]} 13. O-O {[%emt 0:00:41]} O-O {[%emt 0:00:25]} 14. Rc1 {[%emt 0:01:52]} Na5 {[%emt 0:03:13]} 15. Ne5 {[%emt 0:03:24]} b5 {[%emt 0:02:34]} 16. Qe2 {[%emt 0:01:56]} Rc8 {[%emt 0:01:52]} 17. a4 {[%emt 0:04:18]} b4 {[%emt 0:04:26]} 18. Na2 {[%emt 0:00:48]} Ra8 {[%emt 0:16:33]} 19. Nc6 {[%emt 0:03:43]} Nxc6 {[%emt 0:01:40]} 20. Rxc6 {[%emt 0:00:05]} a5 {[%emt 0:04:46]} 21. b3 {[%emt 0:01:56]} Ne8 {[%emt 0:00:56]} 22. Rfc1 {[%emt 0:02:51]} h5 {[%emt 0:05:31]} 23. h3 {[%emt 0:03:14]} h4 {[%emt 0:00:53]} 24. Bh2 Bd6 {[%emt 0:08:39]} 25. R1c2 {[%emt 0:02:42]} Bxh2+ {[%emt 0:02:57]} 26. Kxh2 {[%emt 0:00:05]} Nd6 {[%emt 0:00:07]} 27. Nc1 {[%emt 0:02:00]} Nf5 {[%emt 0:00:49]} 28. Qf2 {[%emt 0:04:59]} Qg5 {[%emt 0:02:02]} 29. Ne2 {[%emt 0:17:28]} Qxe3 {[%emt 0:06:13]} 30. Qxe3 {[%emt 0:00:19]} Nxe3 {[%emt 0:00:03]} 31. R2c5 {[%emt 0:00:31]} Kh7 {[%emt 0:05:40]} 32. Rc7 {[%emt 0:02:21]} Kg6 {[%emt 0:02:30]} 33. Rd7 {[%emt 0:03:14]} Kf6 {[%emt 0:01:59]} 34. Rcc7 {[%emt 0:02:31]} g5 {[%emt 0:01:08]} 35. Kg1 {[%emt 0:04:11]} Nf5 {[%emt 0:05:25]} 36. Kf2 {[%emt 0:05:45]} Kg6 {[%emt 0:00:38]} 37. Ke1 {[%emt 0:01:19]} Ne3 {[%emt 0:00:49]} 38. Kf2 {[%emt 0:00:20]} Nd1+ {[%emt 0:00:23]} 39. Ke1 {[%emt 0:00:40]} Ne3 {[%emt 0:00:09]} 40. Kf2 {[%emt 0:00:08]} Nf5 {[%emt 0:00:05]} 41. Ke1 {[%emt 0:30:35]} Nh6 {[%emt 0:33:12]} 42. Kd2 {[%emt 0:05:07]} Ng8 {[%emt 0:04:48]} 43. Ra7 {[%emt 0:09:07]} Nh6 {[%emt 0:01:42]} 44. Nc1 {[%emt 0:05:28]} Rfc8 {[%emt 0:03:47]} 45. Nd3 {[%emt 0:07:40]} f6 {[%emt 0:00:47]} 46. Nc5 {[%emt 0:07:43]} Kf5 {[%emt 0:00:49]} 47. Nb7 {[%emt 0:00:00]} Rxa7 {[%emt 0:00:00]} 48. Nd6+ {[%emt 0:00:00]} Kf4 {[%emt 0:00:00]} 49. Rxa7 {[%emt 0:00:00]} Rc3 {[%emt 0:00:00]} 50. Rxa5 {[%emt 0:00:00]} Rxb3 {[%emt 0:00:00]} 51. Kc2 {[%emt 0:00:00]} Rc3+ {[%emt 0:00:00]} 52. Kb2 {[%emt 0:00:00]} Kg3 {[%emt 0:00:00]} 53. Rb5 {[%emt 0:00:00]} Kxg2 {[%emt 0:00:00]} 54. Rxb4 {[%emt 0:00:00]} Rxf3 {[%emt 0:00:00]} 55. a5 {[%emt 0:00:00]} Rxh3 {[%emt 0:00:00]} 56. a6 {[%emt 0:00:00]} Rf3 {[%emt 0:00:00]} 57. a7 {[%emt 0:00:00]} h3 {[%emt 0:00:00]} 58. a8=Q {[%emt 0:00:00]} h2 {[%emt 0:00:00]} 59. Qa6 {[%emt 0:00:00]} h1=Q {[%emt 0:00:00]} 60. Qe2+ {[%emt 0:00:00]} Rf2 {[%emt 0:00:00]} 61. Qxf2+ {[%emt 0:00:00]} Kxf2 {[%emt 0:00:00]} 0-1

[Event "Germany Countries-chT Youth 2022"]
[Site "Wiesbaden"]
[Date "2022.10.02"]
[Round "3"]
[White "Mukazhanov, Mansur"]
[Black "Neuhoff, Laertes"]
[Result "1/2-1/2"]
[ECO "C44"]
[WhiteElo "1319"]
[BlackElo "1885"]
[Annotator "NA COMBH"]
[PlyCount "84"]
[EventDate "2022.09.28"]
[EventType "team-tourn"]
[EventRounds "7"]
[EventCountry "GER"]
[SourceTitle "playchess.com"]
[Source "ChessBase"]
[SourceQuality "1"]
[TimeControl "40/5400+30:1800+30"]

1. e4 {[%emt 0:00:06]} e5 {[%emt 0:00:01]} 2. Nf3 {[%emt 0:00:05]} Nc6 {[%emt 0:00:08]} 3. d4 {[%emt 0:00:04]} exd4 {[%emt 0:00:01]} 4. Nxd4 {[%emt 0:00:08]} Nf6 {[%emt 0:00:07]} 5. Nc3 {[%emt 0:03:37]} Bb4 {[%emt 0:01:21]} 6. Nxc6 {[%emt 0:00:18]} bxc6 {[%emt 0:00:16]} 7. Bd3 {[%emt 0:00:08]} d5 {[%emt 0:00:17]} 8. exd5 {[%emt 0:00:05]} cxd5 {[%emt 0:00:04] 8...0-0 is the hot move.} 9. Bd2 {[%emt 0:00:16]} O-O {[%emt 0:00:15]} 10. O-O {[%emt 0:00:07]} Be6 {[%emt 0:05:13]} 11. Ne2 {[%emt 0:00:15]} Bd6 {[%emt 0:00:59] [#]} 12. Bf4 $146 {[%emt 0:00:19]} ({Predecessor:} 12. Bg5 Bxh2+ 13. Kh1 Bd6 14. Nd4 Bd7 15. Nf5 Bxf5 16. Bxf5 Be5 17. c3 Bd6 18. Bxf6 Qxf6 19. Qxd5 {½-½ (27) Zuther,T-Heinz,A (1800) Oberhof 1999}) 12... c5 {[%emt 0:03:40]} 13. c3 {[%emt 0:00:29]} Re8 {[%emt 0:10:23]} 14. Qd2 {[%emt 0:01:44]} Qc7 {[%emt 0:03:31]} 15. Rad1 {[%emt 0:01:07]} Rad8 {[%emt 0:06:29]} 16. Rfe1 {[%emt 0:02:10]} a5 {[%emt 0:10:36]} 17. Bxd6 {[%emt 0:01:28]} Qxd6 {[%emt 0:02:16]} 18. Bb1 {[%emt 0:00:24]} Qb6 {[%emt 0:06:19]} 19. Nf4 {[%emt 0:00:55]} d4 {[%emt 0:04:31]} 20. Nxe6 {[%emt 0:03:29]} Rxe6 {[%emt 0:05:35]} 21. Rxe6 {[%emt 0:00:35]} Qxe6 {[%emt 0:07:24]} 22. h3 {[%emt 0:01:28]} Qb6 {[%emt 0:09:58]} 23. b3 {[%emt 0:02:53]} Nd5 {[%emt 0:03:26]} 24. cxd4 $11 {[%emt 0:00:30]} Nf6 {[%emt 0:00:38]} 25. d5 {[%emt 0:00:19]} Rxd5 {[%emt 0:00:33]} 26. Qc2 {[%emt 0:00:24]} Rxd1+ {[%emt 0:00:11]} 27. Qxd1 {[%emt 0:00:08]} g6 {[%emt 0:00:17]} 28. Bd3 {[%emt 0:00:23]} Qd6 {[%emt 0:06:30]} 29. Qe2 {[%emt 0:00:32]} Qf4 {[%emt 0:01:27]} 30. Bc4 {[%emt 0:00:37]} Qc1+ {[%emt 0:00:07]} 31. Kh2 {[%emt 0:00:10]} Qf4+ {[%emt 0:00:08]} 32. g3 {[%emt 0:00:09]} Qd4 {[%emt 0:03:49]} 33. Kg2 {[%emt 0:02:56]} Ne4 34. Qf3 {[%emt 0:00:43]} Nd6 {[%emt 0:01:53]} 35. Qd5 {[%emt 0:00:09]} Qxd5+ {[%emt 0:04:46]} 36. Bxd5 {[%emt 0:00:11]} Kg7 {[%emt 0:00:11]} 37. f4 {[%emt 0:00:21]} f5 {[%emt 0:02:30]} 38. Kf3 {[%emt 0:00:06]} Nc8 {[%emt 0:00:21]} 39. g4 {[%emt 0:00:20]} Nb6 {[%emt 0:00:24]} 40. Bc4 {[%emt 0:00:53]} Nxc4 {[%emt 0:01:36]} 41. bxc4 {[%emt 0:30:06]} Kf6 {[%emt 0:30:10]} 42. g5+ {[%emt 0:00:12]} Ke6 {[%emt 0:00:15]} 1/2-1/2

[Event "Germany Countries-chT Youth 2022"]
[Site "Wiesbaden"]
[Date "2022.10.02"]
[Round "3"]
[White "Petrovsky, Vadim"]
[Black "Holinka, Henning"]
[Result "1-0"]
[ECO "B92"]
[WhiteElo "1287"]
[BlackElo "2245"]
[Annotator "TA"]
[PlyCount "87"]
[EventDate "2022.09.28"]
[EventType "team-tourn"]
[EventRounds "7"]
[EventCountry "GER"]
[SourceTitle "playchess.com"]
[Source "ChessBase"]
[SourceQuality "1"]
[TimeControl "40/5400+30:1800+30"]

{[%evp 16,87,13,10,22,0,10,11,11,13,15,0,8,8,16,18,28,11,51,40,64,72,75,64,62,73,62,45,50,45,51,31,38,23,70,66,62,71,65,45,74,62,52,33,57,41,64,19,79,8,31,0,85,60,310,316,320,314,522,579,569,541,2182,2142,2414,2375,1554,937,908,882,842,828,1449,1328]} 1. e4 {[%emt 0:00:03]} c5 {[%emt 0:00:11]} 2. Nf3 {[%emt 0:01:19]} d6 {[%emt 0:00:08]} 3. d4 {[%emt 0:00:17]} cxd4 {[%emt 0:00:09]} 4. Nxd4 {[%emt 0:00:04]} Nf6 {[%emt 0:00:09]} 5. Nc3 {[%emt 0:00:06]} a6 {[%emt 0:00:33]} 6. Be2 {[%emt 0:00:09]} e5 {[%emt 0:00:00]} 7. Nb3 {[%emt 0:00:04]} Be7 {[%emt 0:00:00]} 8. O-O {[%emt 0:00:42]} O-O {[%emt 0:00:11]} 9. Re1 {[%emt 0:00:17]} Be6 {[%emt 0:01:18] B92: Sicilian Najdorf: 6 Be2.} 10. Bf3 {[%emt 0:00:20]} Qc7 {[%emt 0:06:59]} 11. a4 {[%emt 0:01:09][%cal Ba2a4,Ba4a5][%mdl 32]} Rc8 {[%emt 0:03:10] The position is equal. The main line 11...Rc8 scores better than 11...Nbd7.} 12. a5 {[%emt 0:11:30]} Nbd7 {[%emt 0:05:49]} 13. Nd2 {[%emt 0:00:20]} Bd8 {[%emt 0:05:15]} 14. Nf1 {[%emt 0:05:01] [#]} Rab8 $146 {[%emt 0:01:21]} ({Predecessor:} 14... Qc5 15. Be3 Qb4 16. Qc1 b5 17. Bd2 Qc5 18. Ne3 b4 19. Ncd5 Bxd5 20. exd5 Bxa5 {0-1 (48) Ng,A (2200)-Steingrimsson,H (2544) Lubbock 2013}) 15. Bd2 {[%emt 0:15:09]} b5 {[%emt 0:19:38]} 16. axb6 {[%emt 0:00:19]} Rxb6 {[%emt 0:10:45]} 17. b3 {[%emt 0:04:25][%cal Bb2b3,Bb3b4][%mdl 32]} Rc6 {[%emt 0:03:12]} 18. Nd5 {[%emt 0:02:58]} ({But not} 18. Re3 Qb7 $11) 18... Bxd5 {[%emt 0:00:50]} 19. exd5 {[%emt 0:00:02]} Rxc2 {[%emt 0:02:06][%cal Oa6a5]} 20. Ne3 {[%emt 0:00:37]} Rc5 {[%emt 0:02:07] Against Ba5} 21. b4 {[%emt 0:00:30] Inhibits a5.} Rb5 {[%emt 0:03:05]} 22. Be2 {[%emt 0:01:42]} Rb6 {[%emt 0:02:54]} 23. Bxa6 {[%emt 0:00:51]} Ra8 {[%emt 0:01:30]} 24. Bf1 {[%emt 0:02:58] A strong pair of Bishops.} Rbb8 {[%emt 0:02:43]} (24... Rxa1 $11 25. Qxa1 Ne4) 25. Rc1 $1 $14 {[%emt 0:18:06]} Qb7 {[%emt 0:03:48]} 26. Nf5 {[%emt 0:00:38]} g6 {[%emt 0:17:14]} (26... Qxd5 $2 27. Bc4 Qb7 28. Nxd6 $18) 27. Nxd6 {[%emt 0:15:01][%cal Bf5d6,Bd6c4,Bc4e3,Be3g4][%mdl 32] White is much more active.} Qxd5 {[%emt 0:00:23]} 28. Nc4 {[%emt 0:02:48]} Be7 {[%emt 0:01:04]} 29. b5 {[%emt 0:02:45]} Bc5 {[%emt 0:05:27]} ({Resist} 29... Rxb5 30. Ne3 Qb7 31. Bxb5 Qxb5 32. Qf3 $16) 30. Ne3 {[%emt 0:00:52]} Qb7 {[%emt 0:00:12]} 31. Qb3 {[%emt 0:00:17]} Bd4 {[%emt 0:00:17] [#]} (31... Ne4 $11 {keeps the balance.} 32. Bb4 Bd4) 32. Bb4 {[%emt 0:02:27]} (32. Bc3 $1 $16) 32... Ne4 {[%emt 0:00:51]} 33. Ng4 {[%emt 0:04:01][%cal Oe1e4] aiming for Rxe4!} Ndc5 {[%emt 0:02:13]} (33... Kg7 $1 $11) 34. Qf3 {[%emt 0:02:41] Threatens to win with Bc4.} Ra2 $2 {[%emt 0:01:05] Loses the game.} (34... f5 $14 35. Bxc5 Nxc5 36. Nxe5 Ne4 37. Rxe4 fxe4) 35. Bxc5 $18 {[%emt 0:01:37] Dancing on a razor blade.} Nxc5 {[%emt 0:00:14] [#]} 36. Qf6 {[%emt 0:00:00]} h5 $2 {[%emt 0:00:39]} (36... Ne6 37. Red1 h5) 37. Bc4 {[%emt 0:00:12] White is clearly winning.} hxg4 {[%emt 0:00:53]} 38. Bxa2 {[%emt 0:00:45]} Bxf2+ {[%emt 0:00:34]} 39. Kxf2 {[%emt 0:01:50]} Nd3+ {[%emt 0:00:05]} 40. Kg3 {[%emt 0:00:35] White wants to mate with Qxg6+.} Nf4 {[%emt 0:00:54] [#]} 41. Qxf7+ $1 {[%emt 0:31:24]} Qxf7 {[%emt 0:05:32]} 42. Bxf7+ {[%emt 0:00:00]} Kxf7 {[%emt 0:00:07]} 43. Rxe5 {[%emt 0:00:00]} g5 {[%emt 0:03:29]} 44. Rc6 {[%emt 0:00:00] Weighted Error Value: White=0.13 (very precise) /Black=0.43} 1-0

[Event "Germany Countries-chT Youth 2022"]
[Site "Wiesbaden"]
[Date "2022.10.02"]
[Round "3"]
[White "Chandrasekher, Ritu"]
[Black "Rafikova, Ailin"]
[Result "1-0"]
[ECO "B92"]
[WhiteElo "1262"]
[BlackElo "1287"]
[Annotator "NA RC COMBH"]
[PlyCount "65"]
[EventDate "2022.09.28"]
[EventType "team-tourn"]
[EventRounds "7"]
[EventCountry "GER"]
[SourceTitle "playchess.com"]
[Source "ChessBase"]
[SourceQuality "1"]
[TimeControl "40/5400+30:1800+30"]

1. e4 {[%emt 0:00:02]} c5 {[%emt 0:00:06]} 2. Nf3 {[%emt 0:00:08]} d6 {[%emt 0:00:05]} 3. d4 {[%emt 0:00:15]} cxd4 {[%emt 0:00:06]} 4. Nxd4 {[%emt 0:00:11]} Nf6 {[%emt 0:00:06]} 5. Nc3 {[%emt 0:00:14]} a6 {[%emt 0:00:07]} 6. Be2 {[%emt 0:00:53]} e5 {[%emt 0:00:54]} 7. Nb3 {[%emt 0:01:01]} Be7 {[%emt 0:00:29]} 8. O-O {[%emt 0:00:50]} O-O {[%emt 0:00:19]} 9. Be3 {[%emt 0:00:58]} Be6 {[%emt 0:01:37]} 10. Qd2 {[%emt 0:01:18]} Nbd7 {[%emt 0:02:24]} 11. Rad1 {[%emt 0:03:38]} Rc8 {[%emt 0:01:39]} 12. f4 {[%emt 0:04:39]} b5 {[%emt 0:06:59]} 13. a3 {[%emt 0:08:55]} Bc4 {[%emt 0:08:26]} 14. Bxc4 {[%emt 0:07:44]} bxc4 {[%emt 0:03:30]} 15. Nc1 {[%emt 0:04:03]} Nc5 {[%emt 0:06:23]} 16. Bxc5 {[%emt 0:04:47]} Rxc5 {[%emt 0:00:39]} 17. N1e2 {[%emt 0:04:34]} Qc7 {[%emt 0:03:29]} 18. Ng3 {[%emt 0:05:23]} g6 {[%emt 0:03:42]} 19. f5 {[%emt 0:05:56]} Rb8 {[%emt 0:03:21]} 20. Rb1 {[%emt 0:06:28]} Qa7 {[%emt 0:02:26]} 21. Kh1 {[%emt 0:02:03]} Nd7 {[%emt 0:03:26]} 22. fxg6 {[%emt 0:03:47]} fxg6 {[%emt 0:00:31]} 23. Nd5 {[%emt 0:02:04]} Bf8 {[%emt 0:05:32]} 24. Qg5 {[%emt 0:03:06]} Kh8 {[%emt 0:05:10]} 25. Rf7 {[%emt 0:03:17]} Rcb5 {[%emt 0:05:24]} 26. Nf6 {[%emt 0:02:14]} Bg7 {[%emt 0:02:22]} 27. Rxd7 {[%emt 0:02:44]} Rxb2 {[%emt 0:04:07]} 28. Rf1 {[%emt 0:02:49]} Qd4 {[%emt 0:02:04]} 29. Nfh5 {[%emt 0:03:07]} Rb1 {[%emt 0:01:30]} 30. Rd8+ {[%emt 0:01:00]} Bf8 {[%emt 0:00:52]} 31. Qf6+ {[%emt 0:00:31]} Kg8 {[%emt 0:00:06]} 32. Rxf8+ {[%emt 0:01:55]} Rxf8 {[%emt 0:00:08]} 33. Qxf8# 1-0

[Event "Germany Countries-chT Youth 2022"]
[Site "Wiesbaden"]
[Date "2022.10.02"]
[Round "3"]
[White "Vasylenko, Nadeja"]
[Black "Richter, Johanna"]
[Result "1/2-1/2"]
[ECO "B21"]
[WhiteElo "1261"]
[BlackElo "1355"]
[Annotator "NA RC COMBH"]
[PlyCount "148"]
[EventDate "2022.09.28"]
[EventType "team-tourn"]
[EventRounds "7"]
[EventCountry "GER"]
[SourceTitle "playchess.com"]
[Source "ChessBase"]
[SourceQuality "1"]
[TimeControl "40/5400+30:1800+30"]

1. e4 {[%emt 0:00:03]} c5 {[%emt 0:00:04]} 2. d4 {[%emt 0:00:12]} cxd4 {[%emt 0:00:04]} 3. c3 {[%emt 0:00:05]} Nf6 {[%emt 0:00:03]} 4. e5 {[%emt 0:01:11]} Nd5 {[%emt 0:00:05]} 5. Nf3 {[%emt 0:05:22]} Nc6 {[%emt 0:01:16]} 6. cxd4 {[%emt 0:04:21]} d6 {[%emt 0:03:30]} 7. Bc4 {[%emt 0:05:04]} Nb6 {[%emt 0:00:16]} 8. Bb3 {[%emt 0:00:40]} dxe5 {[%emt 0:01:14]} 9. dxe5 {[%emt 0:06:26]} Qxd1+ 10. Bxd1 {[%emt 0:02:21]} Nc4 {[%emt 0:01:26]} 11. Ba4 {[%emt 0:01:08]} Bd7 {[%emt 0:00:29]} 12. Bxc6 {[%emt 0:01:27]} Bxc6 {[%emt 0:00:06]} 13. e6 {[%emt 0:00:08]} Bxf3 {[%emt 0:05:26]} 14. exf7+ {[%emt 0:02:35]} Kxf7 {[%emt 0:00:10]} 15. gxf3 {[%emt 0:00:07]} g6 {[%emt 0:00:17]} 16. Nd2 {[%emt 0:04:43]} Nxd2 {[%emt 0:00:41]} 17. Bxd2 {[%emt 0:00:10]} Bg7 {[%emt 0:00:05]} 18. Rb1 {[%emt 0:00:05]} Rac8 {[%emt 0:00:39]} 19. O-O {[%emt 0:00:08]} Rc2 {[%emt 0:00:16]} 20. Bc1 {[%emt 0:00:12]} Rhc8 {[%emt 0:01:07]} 21. a3 {[%emt 0:00:50]} a5 22. Re1 {[%emt 0:02:18]} Bd4 {[%emt 0:02:06]} 23. Be3 {[%emt 0:06:09]} Bxb2 {[%emt 0:01:15]} 24. Bb6 {[%emt 0:00:45]} a4 {[%emt 0:03:35]} 25. Re4 {[%emt 0:00:27]} Rc1+ {[%emt 0:00:38]} 26. Rxc1 {[%emt 0:00:13]} Rxc1+ {[%emt 0:00:04]} 27. Kg2 {[%emt 0:00:19]} Bxa3 {[%emt 0:01:46]} 28. Rxa4 {[%emt 0:00:17]} Bc5 {[%emt 0:01:01]} 29. Rf4+ {[%emt 0:01:01]} Kg7 {[%emt 0:00:50]} 30. Bxc5 {[%emt 0:01:19]} Rxc5 {[%emt 0:00:05]} 31. Rb4 {[%emt 0:00:05]} b5 {[%emt 0:00:07]} 32. f4 {[%emt 0:00:30]} Kf6 {[%emt 0:00:13]} 33. Kf3 {[%emt 0:00:43]} Kf5 {[%emt 0:01:15]} 34. Rb3 {[%emt 0:00:21]} e5 {[%emt 0:00:38]} 35. fxe5 {[%emt 0:00:48]} Rxe5 {[%emt 0:00:24]} 36. Rb4 {[%emt 0:00:12]} g5 {[%emt 0:00:36]} 37. h3 {[%emt 0:00:30]} h6 {[%emt 0:01:22]} 38. h4 {[%emt 0:11:04]} h5 {[%emt 0:02:32]} 39. hxg5 {[%emt 0:01:27]} Kxg5 {[%emt 0:02:38]} 40. Kg3 {[%emt 0:00:09]} Rc5 {[%emt 0:00:23]} 41. f3 {[%emt 0:31:10]} Kf6 {[%emt 0:31:09]} 42. Rb3 {[%emt 0:01:55]} Ke6 {[%emt 0:00:59]} 43. Kh4 {[%emt 0:00:39]} Kd5 {[%emt 0:01:53]} 44. f4 {[%emt 0:03:14]} Kc4 {[%emt 0:01:22]} 45. Rb1 {[%emt 0:00:16]} Rf5 {[%emt 0:00:14]} 46. Kg3 {[%emt 0:00:45]} Kc3 {[%emt 0:01:44]} 47. Rc1+ {[%emt 0:00:12]} Kd2 {[%emt 0:00:33]} 48. Rc6 {[%emt 0:00:30]} Ke2 {[%emt 0:00:34]} 49. Rc2+ {[%emt 0:01:58]} Kd3 {[%emt 0:00:13]} 50. Rc6 {[%emt 0:00:11]} Ke4 {[%emt 0:01:16]} 51. Rb6 {[%emt 0:00:49]} h4+ {[%emt 0:01:06]} 52. Kh3 {[%emt 0:02:20]} Kxf4 {[%emt 0:00:18]} 53. Kxh4 {[%emt 0:00:13]} Ke4 {[%emt 0:00:10]} 54. Kg4 {[%emt 0:00:41]} Re5 {[%emt 0:00:13]} 55. Kg3 {[%emt 0:00:13]} Kd4 {[%emt 0:00:09]} 56. Kf4 {[%emt 0:00:28]} Rd5 {[%emt 0:00:10]} 57. Kf3 {[%emt 0:00:18]} Kc4 {[%emt 0:00:12]} 58. Ke4 {[%emt 0:00:21]} b4 {[%emt 0:00:12]} 59. Rc6+ {[%emt 0:01:01]} Rc5 {[%emt 0:00:09]} 60. Rxc5+ {[%emt 0:00:16]} Kxc5 {[%emt 0:00:07]} 61. Kd3 {[%emt 0:00:05]} Kb5 {[%emt 0:02:28]} 62. Kc2 {[%emt 0:00:49]} Ka4 {[%emt 0:00:38]} 63. Kb2 {[%emt 0:00:18]} b3 {[%emt 0:00:09]} 64. Kb1 {[%emt 0:00:41]} Kb5 {[%emt 0:00:27]} 65. Kb2 {[%emt 0:00:29]} Kc4 {[%emt 0:00:38]} 66. Kb1 {[%emt 0:01:04]} Kb4 {[%emt 0:00:17]} 67. Kb2 {[%emt 0:00:22]} Kc4 {[%emt 0:00:41]} 68. Kb1 {[%emt 0:00:24]} Kc3 {[%emt 0:00:03]} 69. Kc1 {[%emt 0:00:06]} Kc4 {[%emt 0:00:29]} 70. Kb1 {[%emt 0:00:43]} Kc5 {[%emt 0:00:17]} 71. Kb2 {[%emt 0:00:38]} Kb4 {[%emt 0:00:25]} 72. Kb1 {[%emt 0:00:08]} Ka3 {[%emt 0:01:16]} 73. Ka1 {[%emt 0:00:15]} b2+ {[%emt 0:00:14]} 74. Kb1 {[%emt 0:00:08]} Kb3 {[%emt 0:00:03]} 1/2-1/2

[Event "Germany Countries-chT Youth 2022"]
[Site "Wiesbaden"]
[Date "2022.10.02"]
[Round "3"]
[White "Schwarzfischer, Julia"]
[Black "Kutz, Ida Klara"]
[Result "1/2-1/2"]
[ECO "B00"]
[WhiteElo "1256"]
[BlackElo "1411"]
[Annotator "NA RC COMBH"]
[PlyCount "78"]
[EventDate "2022.09.28"]
[EventType "team-tourn"]
[EventRounds "7"]
[EventCountry "GER"]
[SourceTitle "playchess.com"]
[Source "ChessBase"]
[SourceQuality "1"]
[TimeControl "40/5400+30:1800+30"]

1. e4 {[%emt 0:00:02]} d6 {[%emt 0:00:07]} 2. g3 {[%emt 0:00:18]} Nf6 {[%emt 0:00:13]} 3. Bg2 {[%emt 0:00:09]} g6 {[%emt 0:00:45]} 4. d3 {[%emt 0:00:28]} Bg7 {[%emt 0:00:41]} 5. Nf3 {[%emt 0:00:33]} O-O {[%emt 0:00:56]} 6. O-O b6 {[%emt 0:08:37]} 7. e5 {[%emt 0:05:44]} Ne8 8. Re1 Bb7 {[%emt 0:04:40]} 9. Bf4 {[%emt 0:07:56]} dxe5 {[%emt 0:07:16]} 10. Nxe5 {[%emt 0:02:44]} Bxg2 {[%emt 0:00:24]} 11. Kxg2 {[%emt 0:00:11]} Qd5+ {[%emt 0:01:36]} 12. Kg1 {[%emt 0:01:31]} Nc6 {[%emt 0:00:44]} 13. Nc3 {[%emt 0:00:41]} Qe6 {[%emt 0:01:13]} 14. d4 {[%emt 0:02:43]} Nxe5 {[%emt 0:11:50]} 15. Bxe5 {[%emt 0:00:49]} Bxe5 16. Rxe5 {[%emt 0:00:59]} Qd7 {[%emt 0:06:07]} 17. Nd5 {[%emt 0:04:09]} e6 {[%emt 0:00:54]} 18. Nf4 {[%emt 0:00:41]} Ng7 {[%emt 0:01:48]} 19. d5 {[%emt 0:01:30]} Qd6 {[%emt 0:04:01]} 20. Re3 {[%emt 0:02:41]} exd5 {[%emt 0:01:09]} 21. Qxd5 {[%emt 0:00:45]} Qxd5 {[%emt 0:00:47]} 22. Nxd5 {[%emt 0:00:05]} c5 {[%emt 0:00:29]} 23. Nf6+ {[%emt 0:00:15]} Kh8 {[%emt 0:00:16]} 24. Re7 {[%emt 0:00:32]} Nf5 {[%emt 0:00:36]} 25. Rc7 {[%emt 0:00:40]} Kg7 26. Ng4 {[%emt 0:00:47]} Rfc8 {[%emt 0:08:04]} 27. Rd7 {[%emt 0:00:27]} Re8 {[%emt 0:01:02]} 28. a4 {[%emt 0:07:07]} Re4 {[%emt 0:00:56]} 29. f3 Rd4 {[%emt 0:00:53]} 30. Rc7 {[%emt 0:01:05]} Rd2 {[%emt 0:02:49]} 31. a5 bxa5 {[%emt 0:04:34]} 32. Rxc5 {[%emt 0:02:02]} Nd4 {[%emt 0:05:13]} 33. f4 {[%emt 0:02:49]} Rxc2 {[%emt 0:03:01]} 34. Rxc2 {[%emt 0:01:14]} Nxc2 {[%emt 0:00:13]} 35. Rxa5 {[%emt 0:01:03]} Nd4 {[%emt 0:05:42]} 36. Kf2 Rb8 {[%emt 0:04:32]} 37. Rxa7 {[%emt 0:01:10]} Rxb2+ {[%emt 0:00:19]} 38. Ke3 {[%emt 0:00:32]} Nf5+ {[%emt 0:01:31]} 39. Kf3 {[%emt 0:01:24]} Nd6 {[%emt 0:02:04]} 1/2-1/2